Cogmind - Beta 17.1 @@@ ROGUE MODE // 2026.09.09 @ 20:53:04 Player: TheSkyeDoctor Result: Destroyed by X-77 Beamer with Gatling Laser Performance ------------- Evolutions (6) 3000 Regions Visited (6) 1200 Robots Destroyed (23) 115 Value Destroyed (719) 719 Prototype IDs (7) 140 Alien Tech Used (0) 0 Bonus (800) 800 TOTAL SCORE: 5974 Bonus ------- Registered with UFD 300 Met Optimus in HQ 500 Cogmind --------- Core Integrity 0/1150 Matter 7/300 Energy 46/100 System Corruption 0% Temperature Cool (24) Movement Rolling (110) Ox1 Location -4/Armory Parts ------- > --- POWER (1) -------- (None) > --- PROPULSION (6) --- Centrium Wheel > --- UTILITY (8) ------ Medium Storage Unit Hacking Suite > --- WEAPON (4) ------- HERF Cannon > --- INVENTORY (10) --- Large Matter Pod (0) Experimental Terrain Scanner Advanced Shield Generator Long-range Tractor Beam KE Penetrator Heavy Shock Bomb Launcher Advanced Datajack Peak State ------------ > --- POWER ------------ Enhanced Fission Core > --- PROPULSION ------- Nuclear Pulse Array Impulse Thruster > --- UTILITY ---------- Advanced Cryofiber Web Improved Coolant Injector Medium Storage Unit Advanced Weight Redist. System Quantum Capacitor Hacking Suite > --- WEAPON ----------- HERF Cannon > --- INVENTORY -------- Enhanced Fission Core Centrium Wheel Large Matter Pod Experimental Terrain Scanner Advanced Shield Generator Long-range Tractor Beam KE Penetrator Heavy Shock Bomb Launcher Advanced Datajack [Rating: 72] Favorites ----------- Power Ion Engine Engine Ion Engine Power Core Enhanced Fission Core Propulsion Wheel Treads Light Treads Wheel Wheel Flight Unit Nuclear Pulse Array Utility Large Storage Unit Device Improved Coolant Injector Storage Large Storage Unit Processor Terrain Scan Processor Hackware System Shield Weapon Grenade Launcher Energy Gun Medium Laser Energy Cannon HERF Cannon Ballistic Gun Coil Gun Ballistic Cannon Light Cannon Launcher Grenade Launcher Special Melee Weapon Datajack Build | -11 -10 -10 -7 -5 -4 -4 ------- Run | Yrd Mat Sub Scr Fac Fac Arm Slots Evolved 12 | . . . . 10 2 . Power . | . . . . . . . Propulsion 4 | . . . . 2 2 . Utility 6 | . . . . 6 . . Weapon 2 | . . . . 2 . . Parts Attached 49 | 6 1 4 2 23 11 2 Power 7 | 1 . 1 . 3 1 1 Engine 4 | 1 . 1 . 2 . . Core 3 | . . . . 1 1 1 Reactor . | . . . . . . . Propulsion 9 | 2 . 2 . 3 1 1 Treads 2 | 2 . . . . . . Leg . | . . . . . . . Wheel 3 | . . 2 . . . 1 Hover . | . . . . . . . Flight 4 | . . . . 3 1 . Utility 21 | 1 1 . 1 11 7 . Device 14 | . . . . 7 7 . Storage 3 | 1 1 . . 1 . . Processor 1 | . . . . 1 . . Hackware 3 | . . . 1 2 . . Protection . | . . . . . . . Artifact . | . . . . . . . Weapon 12 | 2 . 1 1 6 2 . Energy Gun 2 | 2 . . . . . . Energy Cannon 1 | . . . . . 1 . Ballistic Gun 4 | . . . . 3 1 . Ballistic Cannon 1 | . . . 1 . . . Launcher 3 | . . 1 . 2 . . Special Weapon . | . . . . . . . Impact Weapon . | . . . . . . . Slashing Weapon . | . . . . . . . Piercing Weapon . | . . . . . . . Special Melee Weapon 1 | . . . . 1 . . Unidentified Prototypes 1 | . . . . . 1 . Parts Lost 30 | . 1 4 . 17 8 . Power 4 | . . 1 . 3 . . Propulsion 7 | . 1 1 . 3 2 . Utility 11 | . . . . 5 6 . Weapon 8 | . . 2 . 6 . . Highest Loss Streak 10 | . 1 4 . 10 5 . To Critical Strikes 1 | . . . . 1 . . Average Backups 4 | . 3 3 6 4 7 8 Power . | . 1 . . . . . Propulsion . | . . . . . . . Utility 2 | . . 1 3 2 3 4 Weapon 1 | . . 1 1 . 2 2 Tool/Special . | . . . . . . . Unused Backups 4 | . . . . . 1 3 Power . | . . . . . . . Propulsion . | . . . . . . . Utility 2 | . . . . . . 2 Weapon 1 | . . . . . 1 . Tool/Special 1 | . . . . . . 1 Average Slot Usage (%) 66 | . 75 71 91 32 43 16 Engine 9 | . 14 13 14 1 . . Treads 4 | . 18 4 . . . . Wheel 10 | . . 20 21 1 . 3 Flight 1 | . . . . 3 9 . Device 3 | . . . . 6 18 . Storage 10 | . 14 14 14 1 5 5 Hackware 5 | . . . 12 6 5 5 Energy Gun 7 | . 28 8 . . . . Ballistic Cannon 4 | . . . 12 1 . . Launcher 6 | . . 9 14 . . . Peak Build Rating 72 | 6 6 7 13 66 72 22 Average Rating 15 | 4 5 5 10 29 52 17 On Entrance 9 | . 6 5 6 11 25 10 Avg Prop Armor Cover (%) 13 | . . 13 . . . . Naked Turns . | . . . . . . . Heaviest Build 41 | 14 29 29 31 39 41 23 Greatest Support 40 | 40 40 30 30 26 31 16 Greatest Overweight (x) 10 | . 1 1 3 10 3 3 Average Overweight (x) . | . . . 1 . . 1 Largest Inventory Capacity 15 | 8 15 15 15 15 10 10 Average Capacity 12 | 7 12 15 15 8 10 10 Most Carried 12 | 1 5 6 12 9 10 9 Average Carried 5 | . 3 3 7 5 7 7 Final Capacity 15 | 8 15 15 15 10 10 10 Final Carried 11 | 1 5 3 11 6 10 7 Scrap Suit Usage (%) 10 | . . . . 47 . . Class Distribution -------------------- 92% | Mutant 5% | Hacker-Mutant Dominant Class ---------------- Mutant | -10/Materials Mutant | -10/Subcaves Mutant | -7/Scraptown Mutant | -5/Factory Mutant | -4/Factory Mutant | -4/Armory Resources | -11 -10 -10 -7 -5 -4 -4 ----------- Run | Yrd Mat Sub Scr Fac Fac Arm Matter Collected 1012 | 193 147 92 30 539 . 11 Remotely 223 | . . . . 223 . . Salvage Created 498 | . 300 45 . 153 . . Parts 44 | . 18 9 . 17 . . Haulers Intercepted . | . . . . . . . Recyclers Shooed . | . . . . . . . Parts Field Recycled . | . . . . . . . Retrieved Matter . | . . . . . . . Parts Self-Destructed 8 | . . 8 . . . . Prevented 1 | . . 1 . . . . Parts Restored . | . . . . . . . Kills | -11 -10 -10 -7 -5 -4 -4 ------- Run | Yrd Mat Sub Scr Fac Fac Arm Combat Hostiles Destroyed 14 | . 7 4 . 3 . . Guns 9 | . 6 1 . 2 . . AOE 5 | . 1 3 . 1 . . Classes Destroyed 9 | . 5 1 . 3 . . Worker 3 | . 1 . . 2 . . Builder 2 | . 1 . . 1 . . Tunneler 1 | . . . . 1 . . Turret 2 | . . 2 . . . . Watcher 1 | . 1 . . . . . Swarmer 7 | . 3 4 . . . . Grunt 4 | . 4 . . . . . Sentry 1 | . . . . 1 . . Programmer 2 | . . . . 2 . . Best Kill Streak 6 | . 3 6 . 4 . . Combat Bots Only 4 | . 3 4 . 1 . . Max Kills in Single Turn 3 | . 1 3 . 3 . . Gunslinging . | . . . . . . . Exploded 3 | . 1 3 . 1 . . Melee . | . . . . . . . Uniques/NPCs Destroyed . | . . . . . . . Combat | -11 -10 -10 -7 -5 -4 -4 -------- Run | Yrd Mat Sub Scr Fac Fac Arm Hostile Shots Fired 500 | . 47 44 . 228 90 91 Missed 181 | . 13 15 . 91 39 23 Hits 319 | . 34 29 . 137 51 68 Melee 1 | . . . . . . 1 Projectile 318 | . 34 29 . 137 51 67 Critical Strikes 11 | . . . . 7 4 . Damage Taken 5722 | . 363 220 . 3220 1049 870 Core 2234 | . 14 73 . 995 574 578 Absorbed by Shields 5 | . . . . . 5 . Regen/Repaired (Parts) 109 | . . . 109 . . . Core Remaining (%) 55 | 100 . . 65 . . . Volleys Fired 88 | . 33 12 . 42 . 1 Largest 3 | . 2 2 . 3 . 1 Hottest 255 | . 90 90 . 255 . 88 Shots Fired 159 | . 66 16 . 76 . 1 Gun 128 | . 66 7 . 55 . . Cannon 6 | . . . . 5 . 1 Launcher 25 | . . 9 . 16 . . Special . | . . . . . . . Kinetic 55 | . . . . 55 . . Thermal 40 | . 33 2 . 5 . . Explosive 23 | . . 9 . 14 . . Electromagnetic 41 | . 33 5 . 2 . 1 Robot Hit Streak 12 | . 4 3 . 12 . . Robot Miss Streak 6 | . 6 2 . 5 . 6 Penetration Max . | . . . . . . . Secondary Targets 3 | . 1 . . 2 . . Max Gunslinging Chain 1 | . 1 . . 1 . . Shots Hit Robots 68 | . 26 4 . 38 . . Core Hits 45 | . 14 12 . 18 . 1 Critical Kills . | . . . . . . . Critical Parts Destroyed 3 | . . . . 3 . . Critical Strikes 3 | . . . . 3 . . Destroy 3 | . . . . 3 . . Melee Attacks . | . . . . . . . Impact . | . . . . . . . Slashing . | . . . . . . . Piercing . | . . . . . . . Sneak Attacks . | . . . . . . . Combat Hostiles . | . . . . . . . Follow-up Attacks . | . . . . . . . Damage Inflicted 2726 | . 407 428 . 1885 . 6 Guns 1080 | . 368 47 . 665 . . Cannons 37 | . . . . 37 . . Explosions 1597 | . 33 381 . 1183 . . Melee . | . . . . . . . Ramming 12 | . 6 . . . . 6 Kinetic 605 | . . . . 605 . . Thermal 858 | . 194 13 . 651 . . Explosive 955 | . . 381 . 574 . . Electromagnetic 296 | . 207 34 . 55 . . Impact . | . . . . . . . Slashing . | . . . . . . . Piercing . | . . . . . . . Highest Corruption 9 | . 2 2 2 9 . . Average Corruption 2 | . 2 2 2 4 . . Corruption Purged . | . . . . . . . Corruption Blocked . | . . . . . . . Effects 34 | . 9 9 . 16 . . Message Errors 6 | . 1 1 . 4 . . Matter Fused 7 | . 2 1 . 4 . . Heat Flow Errors 6 | . 1 1 . 4 . . Energy Discharges 6 | . 4 1 . 1 . . Parts Rejected 1 | . . . . 1 . . Data Loss (minor) 3 | . 1 1 . 1 . . Data Loss (major) 2 | . . 1 . 1 . . Misfires 2 | . . 2 . . . . Alerts 1 | . . 1 . . . . Overload Shots 3 | . . . . 3 . . Overflow Damage 66 | . . 5 . 61 . . Projectiles 18 | . . . . 18 . . Explosions 48 | . . 5 . 43 . . Melee . | . . . . . . . Knockbacks . | . . . . . . . Impact . | . . . . . . . Kinetic . | . . . . . . . Secondary . | . . . . . . . Self-Inflicted Damage 253 | . . 16 . 234 . 3 Shots 4 | . . 1 . 3 . . Rammed 3 | . 1 . . . . 2 Targets Rammed 4 | . 2 . . . . 2 Kicked . | . . . . . . . Crushed 1 | . 1 . . . . . Highest Temperature 691 | . 339 116 . 691 183 55 Average Temperature 142 | . 115 76 . 219 110 19 Received Heat Transfer 1790 | . 147 84 . 717 452 390 Effects 5 | . . . . 5 . . Shutdowns 1 | . . . . 1 . . Matter Decay 1 | . . . . 1 . . Short Circuit 2 | . . . . 2 . . Damage (core) 1 | . . . . 1 . . Siege Activations . | . . . . . . . Martial Activations . | . . . . . . . Shielding Activations . | . . . . . . . Robots Disrupted . | . . . . . . . Combat Hostiles . | . . . . . . . Robots Corrupted . | . . . . . . . Combat Hostiles . | . . . . . . . Parts Fried . | . . . . . . . Impact Corruptions . | . . . . . . . Robots Melted . | . . . . . . . Combat Hostiles . | . . . . . . . Parts Melted . | . . . . . . . Heat Transferred 1155 | . 531 37 . 587 . . Parts Sabotaged 2 | . . . . . . 2 Parts Stolen . | . . . . . . . Parts Stripped . | . . . . . . . Power Chain Reactions 1 | . 1 . . . . . Alert | -11 -10 -10 -7 -5 -4 -4 ------- Run | Yrd Mat Sub Scr Fac Fac Arm Maximum Alert Level 2 | . . . . 1 2 . Low Security (%) 68 | 100 100 . . 37 70 100 Level 1 28 | . . . . 62 8 . Level 2 2 | . . . . . 20 . Level 3 . | . . . . . . . Level 4 . | . . . . . . . Level 5 . | . . . . . . . High Security . | . . . . . . . Max Security . | . . . . . . . Peak Influence 443 | . 121 . . 395 443 194 Initial 194 | . . . . . 188 194 Average 132 | . 35 . . 187 247 189 Influence Increases 1747 | . 223 255 . 839 430 . Destroy 0b10 Robot/C 320 | . 140 120 . 60 . . Destroy 0b10 Robot/NC 35 | . 15 . . 20 . . Destroy Leader 62 | . 32 . . 30 . . Successful Hack 31 | . . . . 11 20 . Disable Machine 300 | . 15 . . 285 . . Anti-Garrison Action 200 | . . . . . 200 . Destroy Structure 124 | . 6 . . 118 . . Partial Spotted 75 | . . . . 30 45 . Lose Combat Pursuer 600 | . 15 135 . 285 165 . Influence Decreases 1563 | . 223 255 . 454 417 214 Entered New Map 401 | . . . . . 197 204 Time Decay 862 | . 213 215 . 284 140 10 Lost Part 300 | . 10 40 . 170 80 . Squads Dispatched 6 | . 1 . . 2 3 . Investigation 1 | . . . . . 1 . Extermination 2 | . . . . 1 1 . Reinforcement 3 | . 1 . . 1 1 . Assault . | . . . . . . . Garrison . | . . . . . . . Intercept . | . . . . . . . Searches Triggered . | . . . . . . . Construction Impeded 1 | . . . . 1 . . Haulers Reinforced . | . . . . . . . Active Scanning Responses . | . . . . . . . Cargo Convoy Interrupts . | . . . . . . . Stealth | -11 -10 -10 -7 -5 -4 -4 --------- Run | Yrd Mat Sub Scr Fac Fac Arm Distress Signals 6 | . 2 . . 2 2 . Communications Jammed . | . . . . . . . Distress Signals . | . . . . . . . Times Spotted 86 | . 15 6 . 29 33 3 Peak Tracking Total 16 | . 4 4 . 8 16 3 Tactical Retreats 17 | . 1 2 . 8 6 . Traps | -11 -10 -10 -7 -5 -4 -4 ------- Run | Yrd Mat Sub Scr Fac Fac Arm Traps Triggered 3 | . 1 . . 2 . . Indirectly . | . . . . . . . Trap Hack Attempts . | . . . . . . . Triggered . | . . . . . . . Disarmed . | . . . . . . . Reprogrammed . | . . . . . . . Reused . | . . . . . . . Traps Extracted . | . . . . . . . Installed . | . . . . . . . Triggered . | . . . . . . . Machines | -11 -10 -10 -7 -5 -4 -4 ---------- Run | Yrd Mat Sub Scr Fac Fac Arm Machines Disabled 23 | . 1 3 . 19 . . Max in Single Turn 11 | . 1 2 . 11 . . Garrison Access 1 | . . . . . 1 . Machines Repaired . | . . . . . . . Machines Dismantled . | . . . . . . . Machines Sabotaged . | . . . . . . . Overloaded Fab Kills . | . . . . . . . Hacking | -11 -10 -10 -7 -5 -4 -4 --------- Run | Yrd Mat Sub Scr Fac Fac Arm Machines Accessed 8 | . . . 1 2 5 . Terminals 4 | . . . . 2 2 . Fabricators . | . . . . . . . Repair Stations . | . . . . . . . Recycling Units . | . . . . . . . Scanalyzers 2 | . . . . . 2 . Garrison Access 1 | . . . . . 1 . Total Hacks 17 | . . . 1 3 13 . Successful 7 | . . . 1 2 4 . Failed 9 | . . . . 1 8 . Catastrophic 3 | . . . . 1 2 . Database Lockouts 1 | . . . . . 1 . Manual 10 | . . . . 3 7 . Terminals 8 | . . . . 3 5 . Fabricators . | . . . . . . . Repair Stations . | . . . . . . . Recycling Units . | . . . . . . . Scanalyzers 6 | . . . . . 6 . Garrison Access 2 | . . . . . 2 . Terminal Hacks 2 | . . . 1 1 . . Record 1 | . . . 1 . . . Branch Access Points 1 | . . . . 1 . . Fabricator Hacks . | . . . . . . . Repair Station Hacks . | . . . . . . . Recycling Unit Hacks . | . . . . . . . Scanalyzer 2 | . . . . . 2 . Insert Component 1 | . . . . . 1 . Retrieve Study 1 | . . . . . 1 . Garrison Access Hacks . | . . . . . . . Unauthorized Hacks 3 | . . . . 1 2 . Terminals 2 | . . . . 1 1 . Botnet 2 | . . . . 1 1 . Fabricators . | . . . . . . . Repair Stations . | . . . . . . . Recycling Units . | . . . . . . . Scanalyzers . | . . . . . . . Garrison Access 1 | . . . . . 1 . Jam 1 | . . . . . 1 . Data Cores Recovered . | . . . . . . . Used . | . . . . . . . Hacking Detections 7 | . . . . 2 5 . Full Trace Events . | . . . . . . . Feedback Events . | . . . . . . . Feedback Blocked . | . . . . . . . Robot Schematics Acquired . | . . . . . . . Robots Built . | . . . . . . . Authchips . | . . . . . . . Time . | . . . . . . . Total Robot Build Rating . | . . . . . . . Part Schematics Acquired . | . . . . . . . Parts Built . | . . . . . . . Authchips . | . . . . . . . Time . | . . . . . . . Total Part Build Rating . | . . . . . . . Part Studies Acquired 1 | . . . . . 1 . Parts Repaired . | . . . . . . . Time . | . . . . . . . Parts Recycled . | . . . . . . . Recycled Matter . | . . . . . . . Retrieved Matter . | . . . . . . . Retrieved Components . | . . . . . . . Parts Scanalyzed . | . . . . . . . Part Schematics Acquired . | . . . . . . . Parts Damaged . | . . . . . . . Bothacking | -11 -10 -10 -7 -5 -4 -4 ------------ Run | Yrd Mat Sub Scr Fac Fac Arm Used RIF Installer . | . . . . . . . Robots Hacked . | . . . . . . . Non-combat . | . . . . . . . Combat . | . . . . . . . Robot Hacks Applied . | . . . . . . . Relay Couplers Released . | . . . . . . . Fabnet Peak Effective % . | . . . . . . . Robots Rewired . | . . . . . . . Allies Hacked . | . . . . . . . Hacks Repelled . | . . . . . . . Allies | -11 -10 -10 -7 -5 -4 -4 -------- Run | Yrd Mat Sub Scr Fac Fac Arm Total Allies . | . . . . . . . Largest Group . | . . . . . . . Highest-Rated Group . | . . . . . . . Highest-Rated Ally . | . . . . . . . Initial UFD Resources 40 | . . . . 38 40 40 Total Orders . | . . . . . . . Ally Attacks . | . . . . . . . Total Damage . | . . . . . . . Kills . | . . . . . . . Allies Corrupted . | . . . . . . . Allies Melted . | . . . . . . . Intel | -11 -10 -10 -7 -5 -4 -4 ------- Run | Yrd Mat Sub Scr Fac Fac Arm Active Infowar (turns) 208 | . . . . 208 . . Terrain 208 | . . . . 208 . . Robot Analysis Total . | . . . . . . . Derelict Logs Recovered 1 | . . . 1 . . . Drone Launches . | . . . . . . . Drone Recoveries . | . . . . . . . Exploration | -11 -10 -10 -7 -5 -4 -4 ------------- Run | Yrd Mat Sub Scr Fac Fac Arm Turns Passed 3948 | 87 744 741 1166 875 299 36 Spaces Moved 3421 | 52 297 633 1019 742 665 13 Core 225 | 5 . . . 209 7 4 Treads 413 | 47 297 69 . . . . Legs . | . . . . . . . Wheels 1729 | . . 564 1019 137 . 9 Hover . | . . . . . . . Flight 1054 | . . . . 396 658 . Fastest Speed 37 | 50 160 95 95 37 37 90 Average Speed 96 | 149 214 112 113 58 38 136 Slowest Speed 550 | 160 240 240 125 550 200 200 Overloaded Moves . | . . . . . . . Propulsion Burnouts . | . . . . . . . Robots Hopped 23 | . . . . 6 17 . Potential Cave-ins . | . . . . . . . Cave-ins Triggered . | . . . . . . . Exploration Rate (%) 29 | 4 54 36 70 21 19 2 Regions Visited 6 Branch Regions 3 Pre-discovered Areas . | . . . . . . . Known Exits Taken . | . . . . . . . Unknown Exits Taken 6 | 1 1 1 1 1 1 . Scrap Searched 1 | . . . 1 . . . Spaces Dug . | . . . . . . . Terrain Destroyed 90 | . 6 14 . 70 . . Melee . | . . . . . . . Projectile 2 | . . . . 2 . . AOE 88 | . 6 14 . 68 . . Terrain Rammed . | . . . . . . . Walls Destroyed . | . . . . . . . Machines Disabled . | . . . . . . . Actions | -11 -10 -10 -7 -5 -4 -4 --------- Run | Yrd Mat Sub Scr Fac Fac Arm Total 3909 | 58 338 649 1028 1113 693 30 Wait 293 | . . . . 267 16 10 Move 3371 | 51 296 632 1018 729 632 13 Hop 21 | . . . . 6 15 . Pick Up 24 | 1 4 1 6 6 6 . Fast Attach 33 | 6 1 1 2 13 9 1 Attach 24 | . . 3 . 13 5 3 Detach 15 | . 1 . 1 8 5 . Swap . | . . . . . . . Drop 13 | . 1 . 1 6 5 . Fire 88 | . 33 12 . 42 . 1 Melee . | . . . . . . . Ram 2 | . . . . . . 2 Kick . | . . . . . . . Crush 2 | . 2 . . . . . Escape Stasis 23 | . . . . 23 . . Rewire . | . . . . . . . Trap . | . . . . . . . Miscellaneous . | . . . . . . . Route ------- -11/Scrapyard -10/Materials (discovered 4 exits: [*Mat x2] / [*Min] / [*Sub]) -10/Subcaves (discovered 2 exits: [*Rec] / *Scr) -7/Scraptown -5/Factory (discovered 5 exits: *Fac / Upp x2 / Ext x2) -4/Factory -4/Armory History --------- Turn | Location | Event 24 | -11/Scrapyard | Discovered new exit (range 16) 88 | -11/Scrapyard | Entered Materials 196 | -10/Materials | Discovered new exit (range 8) 317 | -10/Materials | Build established: Mutant 382 | -10/Materials | Discovered new exit (range 4) 480 | -10/Materials | Discovered new exit (range 15) 808 | -10/Materials | Discovered new exit (range 10) 832 | -10/Materials | Entered Subcaves 833 | -10/Subcaves | Approached by a straggling Scientist 947 | -10/Subcaves | Scientist uncovered a shortcut to Scraptown 1047 | -10/Subcaves | Discovered new exit (range 14) 1086 | -10/Subcaves | Lost 4 parts (1p1n2w) 1397 | -10/Subcaves | A swath of the cavern ceiling suddenly collapsed 1573 | -10/Subcaves | Entered Scraptown 1575 | -7/Scraptown | System corruption cleaned by C-Scrubber 1859 | -7/Scraptown | Visited TADAMA 1886 | -7/Scraptown | Visited SPCMW 1910 | -7/Scraptown | Visited Cyclists 1926 | -7/Scraptown | Visited Fellowship of the Rings 1945 | -7/Scraptown | Visited CR-KLE's Repair Center 1988 | -7/Scraptown | Visited Awakened 2010 | -7/Scraptown | Visited Comm Corps 2045 | -7/Scraptown | Visited UFD Registry 2045 | -7/Scraptown | Registered with UFD as "Pulseplate" 2075 | -7/Scraptown | Visited Science Testing Area 2091 | -7/Scraptown | Visited Scrap Suit Storage 2099 | -7/Scraptown | Found Scrap Suit 2101 | -7/Scraptown | Found Scrap Suit 2121 | -7/Scraptown | Visited LU-1G1's Boring Crew 2146 | -7/Scraptown | Visited Scrapoid Pod Storage 2165 | -7/Scraptown | Visited Infowarlord's Domain 2173 | -7/Scraptown | Found Exp. Terrain Scanner 2194 | -7/Scraptown | Visited Junk Repository 2235 | -7/Scraptown | Visited Abandonware Association 2276 | -7/Scraptown | Visited Research Penetration Think Tank 2298 | -7/Scraptown | Visited Science Guys 2436 | -7/Scraptown | Scanned Subdweller tech in exchange for log data 2511 | -7/Scraptown | CR-KLE repaired 4 parts 2661 | -7/Scraptown | Met Optimus 2661 | -7/Scraptown | Accepted into 0bPrime 2736 | -7/Scraptown | Discovered new exit (range 3) 2739 | -7/Scraptown | Entered Factory 2739 | -5/Factory | Evolved 10 slots: Propulsion x2, Utility x6, Weapon x2 2920 | -5/Factory | Spotted B-75 Beast 2986 | -5/Factory | Core integrity fell below 50% 3017 | -5/Factory | Lost 10 parts (3p1n3u3w) 3492 | -5/Factory | Core integrity fell below 20% 3523 | -5/Factory | Lost 3 parts (1n2w) 3532 | -5/Factory | Identified exit to Upper Caves 3532 | -5/Factory | Identified exit to Extension 3585 | -5/Factory | Lost 3 parts (2u1w) 3608 | -5/Factory | Discovered new exit (range 15) 3614 | -5/Factory | Entered another Factory area 3614 | -4/Factory | Evolved 2 slots: Propulsion x2 3767 | -4/Factory | Spotted B-86 Titan 3839 | -4/Factory | Central database locked down 3871 | -4/Factory | Found Quantum Capacitor 3904 | -4/Factory | Discovered new exit (range 12) 3913 | -4/Factory | Entered Armory 3924 | -4/Armory | Core integrity fell below 50% 3939 | -4/Armory | Core integrity fell below 20% 3940 | -4/Armory | Lost 5 parts (2n3u) 3949 | -4/Armory | Destroyed by X-77 Beamer with Gatling Laser Last Messages --------------- 03904_ EXIT=FOUND 03906_ Impulse Thruster destroyed. 03907_ Adv. Weight Redist. System destroyed. 03908_ Penetrated by Slug. 03908_ Slug penetrates Wall. 03909_ Penetrated by Slug. 03909_ Imp. Coolant Injector destroyed. 03909_ Slug penetrates Wall. 03909_ Machine disabled. 03909_ Adv. Cryofiber Web destroyed. 03912_ Penetrated by Slug. 03912_ Slug penetrates Wall. LOCATION=UNKNOWN GOAL=ESCAPE 03925_ Centrium Wheel blown off. 03925_ Enh. Fission Core blown off. 03925_ E-15 Imp destroyed. 03929_ Acquired 11 matter. 03935_ Acquired Centrium Wheel. 03937_ Slammed into X-77 Beamer. Map ----- +----------------------------------------------------+ | ?????????????????????????????????? | | ?????????????????????????????????? | | ?????????????????????????????????? | | ?????????????????????????????????? | | ?????????????????????????????????? | | ?????????????????????????????????? | | ?????????????????????????????????? | | ?????????????????????????????????? | | ??????????????????????? ????????? | | ??????????????????????? ????????? | | ??????????????????????? ????????? | | ??????????????????????? ????????? | | ??????????????????????? ????????? | | ??????????????????????? ????????? | | ??????????????????????? ????????? | | ?????????????????????###+####????? | | ?????????????????????# #????? | | ?????????????????????# #????? | | ?????????????????????# #????? | | ?????????????????????# #????? | | ?????????????????#???# #????? | | ????????????????## ?# = = #????? | | ????????????????# ####+######?? | | ????????????????+ " *! #?? | | ????????????????# "T x #?? | | ????????????????# ####@######?? | | ????????????????####?# x #????? | | ?????????????????????# T#???? | | ?????????????????????#""" ##???? | | ?????????????????????#""" !#????? | | ?????????????????????#""" #????? | | ?????????????????????# #????? | | ?????????????????????########????? | | ?????????????????????????????????? | | ?????????????????????????????????? | | ?????????????????????????????????? | | ?????????????????????????????????? | | ?????????????????????????????????? | | ?????????????????????????????????? | | ?????????????????????????????????? | | ?????????????????????????????????? | | ?????????????????????????????????? | | ?????????????????????????????????? | | ?????????????????????????????????? | | ?????????????????????????????????? | | ?????????????????????????????????? | | ?????????????????????????????????? | | ?????????????????????????????????? | | ?????????????????????????????????? | | ?????????????????????????????????? | +----------------------------------------------------+ Best States ------------- Heat Dissipation 43 Coolant Potential 80 Energy Generation 21 Energy Capacity 350 Matter Stores 300 Matter Capacity 300 Sight Range 16 Terrain Scan Range 30 Terrain Scan Density 85 Additional Mass Support 9 Base Temperature (-) 200 Evasion (%) 62 Recoil Reduction 6 Energy Filtering 30 Offensive Hacking 22 Defensive Hacking 10 Item Schematics ----------------- None Robot Schematics ------------------ None Fabricated ------------ Nothing Repaired ---------- Nothing Studied --------- Nuclear Pulse Array | -4/Factory | Hacked Alien Tech Used ----------------- None Achievements -------------- None Challenges ------------ None Game ------ Seed BlanketMiningDrillbomb Manual? 0 Play Time 00:28:26 Cumulative 206.1 hours Start 2026.09.09 @ 20:25:14 End 2026.09.09 @ 20:53:04 Sessions 1 Manual Loads 0 Difficulty Rogue Special Mode None Game No. 401 Rogue 401 Adventurer 0 Explorer 0 Win Type - Total 2 Types 2/0/0/0/0/0/0/0/0/0 Lore% 62 Gallery% 62 Achievement% 48 Wizard Run 0 Options --------- Layout 2 ASCII 0 Keyboard 1 Movement Arrows Keybinds 0 Fullscreen 1 Font 24/Smallcaps Map View 50x44 Zoom Use 0% Tactical HUD 1 Map Filters NONE Filters NONE Steam 1 RUN: 91ae1a28-3eeb-4f6f-9d65-e95bce0461d6